bitfinex/quotes_ETHUSD_20250806
["timestamp","ask_amount","ask_price","bid_price","bid_amount"]
[1754490293570,0.1392,3599.6,3599.1,0.04]
[1754490293906,0.1392,3599.4,3599.1,0.04]
[1754490294207,4.444,3599.3,3599.1,0.04]
[1754490294712,4.444,3599.3,3599.1,0.8711]
[1754490295005,4.444,3599.3,3599.2,0.8311]
[1754490295170,4.444,3599.3,3599.1,0.04]
[1754490295567,5.2476,3599.3,3599.1,0.04]
[1754490296394,4.3806,3599.2,3599.1,0.04]
[1754490296780,4.9306,3599.2,3599.1,0.04]
[1754490296981,4.63909893,3599.2,3599.1,0.04]
[1754490297893,37.41749412,3599.2,3599.1,0.04]
[1754490298165,37.96749412,3599.2,3599.1,0.04]
[1754490299508,6.3286268,3598.9,3598.8,0.01958949]
[1754490299807,49.13314077,3598.9,3598.8,0.01958949]
[1754490299995,50.37454077,3598.9,3598.8,0.01958949]
[1754490300513,37.70049893,3598.9,3598.8,0.01958949]
[1754490300875,41.28272573,3598.9,3598.8,0.01958949]
[1754490301114,41.72052573,3598.9,3598.8,0.01958949]
[1754490301327,38.94189893,3598.9,3598.8,0.01958949]
[1754490301689,38.94259923,3598.9,3598.8,0.01958949]
[1754490302120,34.06279923,3598.9,3598.8,0.01958949]
[1754490302413,37.70319923,3598.9,3598.8,0.01958949]
[1754490302712,38.94459923,3598.9,3598.8,0.01958949]
[1754490303309,38.94159923,3598.9,3598.8,0.01958949]
[1754490304776,38.50379923,3598.9,3598.8,0.01958949]
[1754490305759,37.70019923,3598.9,3598.8,0.01958949]
[1754490305958,38.50379923,3598.9,3598.8,0.01958949]
[1754490306656,3.25919923,3598.9,3598.8,0.01958949]
[1754490306874,7.69319923,3598.9,3598.8,0.01958949]
[1754490307035,3.25919923,3598.9,3598.8,0.85068949]
[1754490307238,3.0,3598.9,3598.8,0.85068949]
[1754490307423,7.434,3598.9,3598.8,0.01958949]
[1754490307873,38.6754,3598.9,3598.8,0.01958949]
[1754490308027,41.4540268,3598.9,3598.8,0.01958949]
[1754490308363,42.77826712,3598.9,3598.8,0.01958949]
[1754490308768,42.77826712,3598.9,3598.4,0.002]
[1754490308769,2.77893566,3598.5,3598.4,0.002]
[1754490308979,41.53717598,3598.5,3598.4,0.002]
[1754490309183,41.53717598,3598.5,3598.1,0.04]
[1754490309184,3.32916736,3598.2,3598.1,0.04]
[1754490309491,3.32916736,3598.2,3596.6,0.8351]
[1754490309492,3.32993995,3597.2,3596.6,0.004]
[1754490309777,9.679,3597.2,3596.8,0.8311]
[1754490310089,14.118,3597.2,3596.6,0.004]
[1754490310381,48.82853995,3597.2,3596.6,0.004]
[1754490310736,44.8072,3597.2,3596.6,0.004]
[1754490310937,39.8182,3597.2,3596.6,0.004]
[1754490311275,15.0668,3597.2,3596.6,0.004]
[1754490311505,18.83453995,3597.2,3596.6,0.004]
[1754490311666,48.83453995,3597.2,3596.6,0.004]
[1754490311991,46.0546,3597.2,3596.6,0.004]
[1754490312188,43.83953995,3597.2,3596.6,0.004]
[1754490312388,48.83453995,3597.2,3596.6,0.004]
[1754490312618,44.38953995,3597.2,3596.6,0.004]
[1754490312891,49.09399424,3597.2,3596.6,0.004]
[1754490313092,3.33009452,3597.0,3596.6,0.004]
[1754490313294,36.58854881,3597.0,3596.6,0.004]
[1754490313460,41.17574881,3597.0,3596.6,0.004]
[1754490313659,42.41714881,3597.0,3596.6,0.004]
[1754490314190,42.41914881,3597.0,3596.6,0.004]
[1754490314765,39.64005429,3597.0,3596.6,0.004]
[1754490315100,41.98234881,3597.0,3596.6,0.004]
[1754490315290,42.42014881,3597.0,3596.6,0.004]
[1754490315654,42.82111271,3597.0,3596.6,0.004]
[1754490315855,49.50011271,3597.0,3596.6,0.004]
[1754490316090,40.62865429,3597.0,3596.6,0.004]
[1754490316269,45.07765429,3597.0,3596.6,0.004]
[1754490316805,45.07665429,3597.0,3596.6,0.004]
[1754490317003,7.07865429,3597.0,3596.6,0.004]
[1754490317182,11.52565429,3597.0,3596.6,0.4393]
[1754490317372,14.52565429,3597.0,3596.6,0.4393]
[1754490317567,17.30574881,3597.0,3596.6,0.004]
[1754490317876,19.09714881,3597.0,3596.6,0.004]
[1754490318265,49.09714881,3597.0,3596.6,0.004]
[1754490318812,46.31705429,3597.0,3596.6,0.004]
[1754490318968,40.62865429,3597.0,3596.6,0.004]
[1754490319170,19.09814881,3597.0,3596.6,0.004]
[1754490319669,49.49911271,3597.0,3596.6,0.004]
[1754490320078,46.71901819,3597.0,3596.6,0.004]
[1754490320278,40.62865429,3597.0,3596.6,0.004]
[1754490320478,45.07365429,3597.0,3596.6,0.004]
[1754490320809,41.52465429,3597.0,3596.6,0.8351]
[1754490321007,37.07865429,3597.0,3596.9,1.2417]
[1754490321193,11.2672,3597.0,3596.9,1.2417]
[1754490321507,11.2672,3597.0,3596.9,0.004]
[1754490321868,45.52325897,3597.0,3596.9,0.004]
[1754490322170,49.84749929,3597.0,3596.9,0.004]
[1754490322390,47.06740477,3597.0,3596.9,0.004]
[1754490322699,49.84749929,3597.0,3596.9,0.004]
[1754490322899,19.84749929,3597.0,3596.9,0.004]
[1754490323101,49.84749929,3597.0,3596.9,0.004]
[1754490324214,49.70833597,3597.0,3596.9,0.004]
[1754490324413,49.07329565,3597.0,3596.9,0.004]
[1754490324622,43.54930113,3597.0,3596.9,0.004]
[1754490324801,44.52430113,3597.0,3596.9,0.004]
[1754490324992,49.29953597,3597.0,3596.9,0.004]
[1754490325188,49.84953597,3597.0,3596.9,0.004]
[1754490325511,49.30937207,3597.0,3596.9,0.004]
[1754490325682,52.23137207,3597.0,3596.9,0.004]
[1754490325883,49.30937207,3597.0,3596.9,0.004]
[1754490326115,48.93609565,3597.0,3596.9,0.004]
[1754490326292,47.71819565,3597.0,3596.9,0.004]
[1754490326818,6.93810113,3597.0,3596.9,0.004]
[1754490326975,6.93810113,3597.0,3596.9,1.2417]
[1754490327173,11.39010113,3597.0,3596.9,1.2417]
[1754490327378,11.133,3597.0,3596.9,0.004]
[1754490327715,48.93944526,3597.0,3596.9,0.004]
[1754490328605,44.94045074,3597.0,3596.9,0.004]
[1754490328801,11.39245074,3597.0,3596.9,1.2417]
[1754490329006,14.39245074,3597.0,3596.9,0.004]
[1754490329219,9.93845074,3597.0,3596.9,0.004]
[1754490329414,14.39345074,3597.0,3596.9,1.2417]
[1754490330785,44.94345074,3597.0,3596.9,0.004]
[1754490330990,49.31572168,3597.0,3596.9,0.004]
[1754490331920,48.94044526,3597.0,3596.9,0.004]
[1754490332108,47.72054526,3597.0,3596.9,0.004]
[1754490332280,39.93845074,3597.0,3596.9,0.004]
[1754490332685,44.39045074,3597.0,3596.9,0.004]
[1754490332915,44.39111861,3597.0,3596.9,0.004]
[1754490333291,44.39111861,3597.0,3596.9,0.7706]
[1754490334409,14.39111861,3597.0,3596.9,0.7706]
[1754490334722,14.39111861,3597.0,3596.9,1.2417]
[1754490335221,14.53031861,3597.0,3596.9,1.2417]
[1754490336020,14.53031861,3597.0,3596.9,0.004]
[1754490336187,12.08031861,3597.0,3596.9,0.004]
[1754490336399,41.53031861,3597.0,3596.9,0.004]
[1754490337037,42.74921861,3597.0,3596.9,0.004]
[1754490337537,41.53031861,3597.0,3596.9,0.004]
[1754490337710,40.07831861,3597.0,3596.9,0.004]
[1754490337908,47.31441313,3597.0,3596.9,0.004]
[1754490338122,44.53431861,3597.0,3596.9,0.004]
[1754490338523,49.08331313,3597.0,3596.9,0.004]
[1754490338835,49.85748094,3597.0,3596.9,0.004]
[1754490340428,49.47920452,3597.0,3596.9,0.004]
[1754490340637,49.07831313,3597.0,3596.9,0.004]
[1754490341141,49.47920452,3597.0,3596.9,0.004]
[1754490341644,49.85248094,3597.0,3596.9,0.004]
[1754490342210,6.33032641,3596.7,3596.6,0.004]
[1754490342418,41.57853641,3596.7,3596.6,0.004]
[1754490342868,36.72764502,3596.7,3596.6,0.004]
[1754490343078,42.39454502,3596.7,3596.6,0.004]
[1754490344266,6.33040371,3596.6,3596.5,0.002]
[1754490344462,46.14444127,3596.6,3596.5,0.002]
[1754490345027,50.59044127,3596.6,3596.5,0.002]
[1754490345229,6.33071297,3596.2,3596.1,0.042]
[1754490345466,41.17403158,3596.2,3596.1,0.042]
[1754490345648,42.39293158,3596.2,3596.1,0.042]
[1754490346061,41.94003158,3596.2,3596.1,0.042]
[1754490346362,41.17403158,3596.2,3596.1,0.042]
[1754490346611,42.39293158,3596.2,3596.1,0.042]
[1754490346896,43.16709939,3596.2,3596.1,0.042]
[1754490347199,43.16709939,3596.2,3596.1,1e-08]
[1754490347544,43.16758192,3596.2,3596.1,1e-08]
[1754490347753,6.3313317,3595.4,3595.3,0.004]
[1754490347939,41.18313284,3595.4,3595.3,0.004]
[1754490348144,3.33148642,3595.2,3595.1,0.04]
[1754490348343,55.2909387,3595.2,3595.1,0.04]
[1754490348597,56.91073009,3595.2,3595.1,0.04]
[1754490349098,48.89497895,3595.2,3595.1,0.04]
[1754490349241,47.72808756,3595.2,3595.1,0.04]
[1754490349592,48.94698756,3595.2,3595.1,0.04]
[1754490350158,43.27408756,3595.2,3595.1,0.04]
[1754490350479,47.72349634,3595.2,3595.1,0.04]
[1754490350686,56.50524748,3595.2,3595.1,0.04]
[1754490350899,56.50524748,3595.2,3594.2,0.01958949]
[1754490350900,2.7821829,3594.3,3594.2,0.01958949]
[1754490351060,37.70900992,3594.3,3594.2,0.01958949]
[1754490351441,37.70900992,3594.3,3594.2,1.22898949]
[1754490351643,37.70900992,3594.3,3594.2,0.01958949]
[1754490352055,3.25800992,3594.3,3594.2,0.79268949]
[1754490352285,7.71000992,3594.3,3594.2,0.79268949]
[1754490352499,7.71000992,3594.3,3594.2,0.01958949]
[1754490354007,4.448,3594.3,3594.2,1.22898949]
[1754490354380,6.684,3595.2,3594.2,1.22898949]
[1754490354585,34.451,3595.1,3594.3,1.2094]
[1754490354805,34.451,3595.1,3594.2,0.01958949]
[1754490354806,4.451,3595.1,3594.4,1.2094]
[1754490354967,7.451,3595.1,3594.4,1.2094]
[1754490355173,30.25762837,3595.0,3594.4,1.2094]
[1754490355373,34.451,3594.9,3594.4,1.2094]
[1754490355618,4.451,3594.9,3594.5,0.7731]
[1754490355825,4.451,3594.8,3594.2,0.01958949]
[1754490356001,4.451,3594.8,3594.6,1.2094]
[1754490356372,4.451,3594.8,3594.2,0.01958949]
[1754490356373,3.0,3594.7,3594.2,0.01958949]
[1754490356612,4.45,3594.6,3594.2,0.01958949]
[1754490356768,4.45,3594.5,3594.3,1.2094]
[1754490356967,4.45,3594.5,3594.4,1.2094]
[1754490357171,4.45,3594.5,3594.2,0.01958949]
[1754490357371,30.0,3594.4,3594.2,0.01958949]
[1754490357602,4.452,3594.3,3594.2,0.01958949]
[1754490357791,10.2341829,3594.3,3594.2,0.01958949]
[1754490358001,41.25607408,3594.3,3594.2,0.01958949]
[1754490358173,42.39727408,3594.3,3594.2,0.01958949]
[1754490358375,41.18087408,3594.3,3594.2,0.01958949]
[1754490358706,42.39727408,3594.3,3594.2,0.01958949]
[1754490359672,33.39669118,3594.3,3594.2,0.01958949]
[1754490359984,33.25749118,3594.3,3594.2,0.01958949]
[1754490360374,7.45,3594.3,3594.2,1.22898949]
[1754490360579,6.684,3595.2,3594.2,1.22898949]
[1754490360805,0.25753562,3595.1,3594.3,1.61453234]
[1754490360989,4.456,3595.0,3594.4,1.2094]
[1754490361290,4.456,3595.0,3594.9,2.78171854]
[1754490361495,4.71461363,3595.0,3594.9,1.2094]
[1754490361694,0.40089139,3596.5,3594.9,1.2094]
[1754490361695,2.78008136,3597.1,3595.1,2.78156379]
[1754490361895,0.40089139,3596.2,3595.0,0.7731]
[1754490362102,3.0,3596.0,3595.0,0.7731]
[1754490362319,2.78122432,3595.6,3595.0,0.7731]
[1754490362538,30.25775076,3595.5,3594.6,0.7731]
[1754490362690,3.0,3595.3,3594.2,0.79268949]
[1754490362884,37.64737781,3595.2,3594.2,0.79268949]
[1754490363208,34.465,3595.1,3594.3,0.4363]
[1754490363542,34.464,3595.0,3594.4,0.7731]
[1754490363856,3.0,3595.2,3594.4,0.7731]
[1754490364141,4.464,3595.1,3594.5,0.4363]
[1754490364506,4.464,3595.1,3594.6,0.7731]
[1754490364739,4.464,3595.1,3594.7,1.2094]
[1754490365038,4.464,3595.1,3594.2,0.01958949]
[1754490365039,4.464,3595.1,3594.8,1.2094]
[1754490365323,4.464,3595.1,3594.9,1.2094]
[1754490365510,4.464,3595.1,3594.9,0.4363]
[1754490365838,0.7644,3596.7,3595.0,1.2094]
[1754490366138,34.71921206,3596.4,3595.2,2.78148642]
[1754490366303,3.0,3596.2,3595.3,1.2094]
[1754490366487,34.71921206,3596.1,3595.3,1.2094]
[1754490366688,0.25821206,3596.0,3595.4,1.2094]
[1754490366943,4.461,3595.9,3595.5,0.7731]
[1754490367087,4.72036011,3595.8,3595.6,1.2094]
[1754490367286,3.0,3596.4,3595.3,2.78137344]
[1754490367287,4.72036011,3595.7,3595.3,2.78137344]
[1754490367488,4.461,3595.6,3595.3,0.27813734]
[1754490367759,6.687,3596.5,3594.4,0.02782105]
[1754490367904,4.7195295,3596.4,3595.7,2.78105565]
[1754490368105,0.2585295,3596.3,3595.9,2.78090214]
[1754490368442,4.461,3596.3,3596.0,1.2094]
[1754490368642,0.2585295,3596.2,3595.5,0.7731]
[1754490369042,30.0,3596.1,3595.1,0.7731]
[1754490369196,4.7185295,3596.0,3595.2,0.39910717]
[1754490369525,0.2585295,3595.9,3595.5,2.78121477]
[1754490369698,4.461,3595.9,3595.6,1.2094]
[1754490369905,0.2585295,3595.8,3595.2,1.17220717]
[1754490370100,0.3977295,3595.8,3595.3,0.9123]
[1754490370299,0.3977295,3595.8,3595.4,0.7731]
[1754490370922,0.3977295,3595.8,3595.5,0.7731]
[1754490371114,0.1392,3595.8,3595.5,1.2094]
[1754490371315,0.2585295,3596.1,3595.6,1.2094]
[1754490371514,4.5982,3596.0,3595.7,0.7731]
[1754490372023,4.459,3595.9,3595.3,3.55449146]
[1754490372210,4.459,3595.9,3595.5,0.1392]
[1754490372643,0.1392,3595.8,3595.3,0.9123]
[1754490372873,3.0,3596.4,3595.4,1.2094]
[1754490373178,0.1392,3596.2,3595.7,0.1392]
[1754490373331,1.02320826,3596.2,3595.0,2.78164044]
[1754490373532,0.1392,3595.8,3595.3,0.1392]
[1754490373735,4.458,3595.7,3595.3,0.1392]
[1754490373918,4.458,3595.7,3595.4,1.2094]
[1754490374119,0.1392,3596.1,3595.6,0.1392]
[1754490374356,4.459,3596.0,3595.8,2.78097699]
[1754490374518,6.687,3596.5,3596.0,0.1392]
[1754490374721,0.25878887,3596.4,3596.3,2.78063565]
[1754490375027,4.459,3596.4,3596.3,0.1392]
[1754490375442,4.71762354,3596.4,3596.3,3.69293565]
[1754490375651,4.459,3596.4,3596.3,1.2094]
[1754490375831,4.459,3596.4,3596.3,0.7731]
[1754490376165,6.687,3596.5,3595.6,0.7731]
[1754490376355,6.687,3596.5,3596.0,0.7731]
[1754490376659,4.456,3596.4,3595.6,0.7731]
[1754490376840,4.456,3596.4,3595.8,2.78095568]
[1754490377036,4.456,3596.4,3595.6,0.7731]
[1754490377235,6.687,3596.5,3596.0,2.78080252]
[1754490377443,4.457,3596.4,3596.1,1.2094]
[1754490377627,6.687,3596.5,3596.1,1.2094]
[1754490377832,6.687,3596.5,3595.9,2.78092159]
[1754490378228,4.456,3596.4,3595.9,2.78092159]
[1754490378428,4.456,3596.4,3595.7,0.7731]
[1754490378769,4.456,3596.4,3595.8,2.78095506]
[1754490378929,4.456,3596.4,3595.8,0.67715231]
[1754490379129,4.456,3596.4,3595.8,2.78097553]
[1754490379338,6.687,3596.5,3595.7,0.7731]
[1754490379563,4.453,3596.4,3596.0,2.78082125]
[1754490380081,4.453,3596.3,3596.0,3.55392222]
[1754490380278,4.453,3596.3,3596.1,2.78076454]
[1754490380537,4.453,3596.3,3596.1,0.7731]
[1754490380703,4.453,3596.3,3595.5,0.27812919]
[1754490381026,4.451,3596.2,3595.8,2.78099505]
[1754490381232,4.451,3596.2,3595.7,2.78106374]
[1754490381390,6.687,3596.5,3596.0,2.78082118]
[1754490381585,0.041,3596.9,3595.4,3.0]
[1754490381785,0.041,3596.9,3596.1,4.0325694]
[1754490382025,4.45,3596.8,3596.2,1.2518]
[1754490382331,4.45,3596.8,3596.2,0.8013]
[1754490382534,5.2563,3596.8,3595.8,2.78098232]
[1754490382696,0.4702,3596.7,3595.8,3.0]
[1754490382892,1.2765,3596.7,3595.7,2.78108038]
[1754490383230,0.041,3596.9,3595.8,1.2518]
[1754490383386,0.041,3596.9,3596.1,2.78074713]
[1754490383592,4.454,3596.8,3596.1,2.78074713]
[1754490383909,4.454,3596.8,3596.2,0.8013]
[1754490384111,0.041,3596.9,3596.2,0.8013]
[1754490384313,4.452,3596.8,3596.3,0.47830635]
[1754490384495,0.041,3596.9,3596.8,2.78024911]
[1754490384695,4.495,3596.9,3596.4,1.2518]
[1754490384942,4.495,3596.9,3596.4,3.58183408]
[1754490385143,4.495,3596.9,3596.1,3.0]
[1754490385351,0.041,3596.9,3596.2,0.8013]
[1754490385509,0.041,3596.9,3596.8,2.78024911]
[1754490385919,0.041,3596.9,3596.8,4.03204911]
[1754490386114,0.041,3596.9,3596.8,4.71328764]
[1754490388028,0.041,3596.9,3596.8,3.46148764]
[1754490388241,0.041,3596.9,3596.7,0.1392]
[1754490388954,0.001,3597.5,3597.4,2.7797854]
[1754490389118,0.001,3598.2,3597.8,2.77947634]
[1754490389856,1.3165,3597.9,3597.0,3.5813718]
[1754490390054,1.3165,3597.9,3596.7,0.8013]
[1754490390229,4.467,3597.8,3596.7,0.8013]
[1754490390557,0.8063,3597.7,3596.8,2.78024911]
[1754490390720,4.466,3597.6,3596.8,2.78019705]
[1754490390921,0.8063,3597.5,3596.7,2.78032063]
[1754490391121,1.2765,3597.5,3596.7,2.78026467]
[1754490391348,1.2765,3597.5,3596.9,2.78012774]
[1754490391542,1.2765,3597.5,3596.8,2.78024911]
[1754490391755,0.5102,3597.9,3596.8,2.78024911]
[1754490391953,4.464,3597.8,3596.9,0.30582756]
[1754490392160,0.8063,3597.7,3596.9,2.78014932]
[1754490392361,0.8063,3597.7,3597.0,2.78004877]
[1754490392559,0.8063,3597.7,3596.9,2.78016769]
[1754490392872,0.8063,3597.7,3596.2,2.78069676]
[1754490392873,0.4702,3597.6,3595.9,0.4505]
[1754490393063,0.4702,3597.6,3596.3,2.7805876]
[1754490393064,0.8063,3597.5,3596.3,2.7805876]
[1754490393245,0.4702,3597.4,3596.1,2.78073239]
[1754490393422,0.4702,3597.4,3596.1,3.10386142]
[1754490393628,0.8063,3597.3,3596.1,3.10386142]
[1754490393840,0.4702,3597.2,3596.1,0.32312903]
[1754490394040,5.2693,3597.1,3596.2,2.78268563]
[1754490394251,5.2693,3597.1,3596.3,2.78063248]
[1754490394560,4.463,3597.1,3596.2,2.78268506]
[1754490394865,0.8063,3597.0,3596.2,2.78268304]
[1754490395166,0.8063,3597.0,3596.2,0.63848392]
[1754490395413,0.4702,3597.2,3596.6,2.78034498]
[1754490395541,4.458,3597.1,3596.6,0.8013]
[1754490395729,4.458,3597.1,3596.7,2.7802635]
[1754490395934,4.458,3597.1,3596.2,0.8033]
[1754490396156,0.8063,3597.0,3596.4,2.78051342]
[1754490396542,0.8063,3597.0,3596.2,0.8033]
[1754490396749,3.04,3597.9,3596.2,0.8033]
[1754490397031,4.71873269,3597.8,3597.7,2.7795536]
[1754490397226,4.71873269,3597.8,3597.6,2.7795972]
[1754490397433,4.46,3597.7,3597.6,2.77956466]
[1754490397672,0.04,3597.9,3597.8,2.77947634]
[1754490397827,4.499,3597.9,3597.8,2.77947634]
[1754490398033,0.04,3597.9,3597.8,2.77947634]
[1754490398336,4.499,3597.9,3597.8,3.41551044]
[1754490398670,0.04,3597.9,3597.8,3.41551044]
[1754490398968,0.04,3597.9,3597.8,0.1392]
[1754490398969,4.499,3597.9,3597.8,0.1392]
[1754490399405,4.496,3597.9,3597.8,0.1392]
[1754490399600,5.3023,3597.9,3597.1,0.8013]
[1754490399806,5.7725,3597.9,3597.6,0.1392]
[1754490400100,1.2765,3597.8,3597.3,2.7797896]
[1754490400259,4.456,3597.7,3597.5,2.918879]
[1754490400772,4.456,3597.6,3597.5,2.91890813]
[1754490400954,4.456,3597.6,3597.5,0.1392]
[1754490401495,4.456,3597.6,3597.0,0.8013]
[1754490401496,5.2623,3597.6,3597.2,2.77992153]
[1754490401675,5.7325,3597.6,3597.2,2.91912153]
[1754490401993,1.2765,3597.5,3597.2,0.1392]
[1754490402198,1.2765,3597.5,3597.3,2.77986214]
[1754490402410,4.456,3597.6,3597.4,2.7797854]
[1754490402904,1.2765,3597.5,3596.5,0.8013]
[1754490403106,1.4157,3597.5,3597.1,2.77996204]
[1754490403400,1.4157,3597.5,3597.0,2.91926725]
[1754490403598,1.4157,3597.5,3597.1,2.78000907]
[1754490403771,1.4157,3597.5,3597.0,0.1392]
[1754490403962,0.8063,3597.4,3597.0,0.1392]
[1754490404163,4.452,3597.3,3597.1,2.7799651]
[1754490404470,4.452,3597.3,3597.0,2.78007017]
[1754490404663,4.452,3597.3,3597.2,0.1392]
[1754490404900,4.452,3597.3,3596.4,0.8013]
[1754490405064,4.452,3597.3,3597.0,2.91925998]
[1754490405261,4.452,3597.3,3597.0,0.1392]
[1754490405612,1.4157,3597.2,3596.7,0.1392]
[1754490405967,1.2765,3597.1,3596.7,0.1392]
[1754490406363,0.1392,3597.2,3596.7,0.1392]
[1754490406563,1.2765,3597.0,3596.7,0.1392]
[1754490406763,5.7305,3596.9,3596.7,0.1392]
[1754490407005,5.7305,3596.9,3596.3,2.78060315]
[1754490407006,1.2765,3596.8,3596.5,0.1392]
[1754490407180,0.39858306,3596.7,3596.2,0.1412]
[1754490407380,1.2765,3596.6,3596.2,0.1412]
[1754490407712,5.2573,3596.5,3596.2,0.1412]
[1754490408178,0.1392,3596.7,3596.3,2.78063294]
[1754490408372,5.2553,3596.6,3596.3,2.78063294]
[1754490408702,0.1392,3597.1,3596.6,0.1392]
[1754490408867,4.70851279,3597.0,3596.6,0.1392]
[1754490409066,0.25951279,3596.9,3596.6,0.1392]
[1754490409710,0.1392,3597.1,3596.6,0.1392]
[1754490409711,0.1392,3597.1,3597.0,2.78009452]
[1754490409907,4.5872,3597.1,3597.0,3.58139452]
[1754490410283,3.04,3597.9,3597.0,1.391]
[1754490410510,0.25958913,3597.8,3597.0,1.391]
[1754490410711,4.70858913,3597.7,3597.5,0.1392]
[1754490410914,4.70858913,3597.7,3597.1,2.91911371]
[1754490410915,1.46618913,3597.6,3597.1,2.91911371]
[1754490411111,1.03518913,3597.5,3597.2,2.9191373]
[1754490411317,5.0192,3597.7,3597.2,3.22496103]
[1754490411525,0.25968623,3597.6,3597.2,0.44502373]
[1754490411747,0.25968623,3597.6,3597.4,2.77971643]
[1754490411748,4.447,3597.5,3597.4,2.77971643]
[1754490411915,4.447,3597.5,3597.4,0.1392]
[1754490412742,5.2226,3597.5,3597.4,0.1392]
[1754490412932,5.91336879,3597.5,3596.4,0.7891]
[1754490413113,0.25976879,3597.4,3596.9,2.7801188]
[1754490413444,1.2066,3597.3,3596.8,2.78022881]
[1754490413607,4.447,3597.5,3596.8,2.78022881]
[1754490413608,1.2066,3597.2,3597.0,0.1392]
[1754490413808,4.446,3597.1,3597.0,0.1392]
[1754490414034,5.6526,3597.1,3597.0,0.1392]
[1754490414232,5.91241215,3597.1,3596.0,0.7891]
[1754490414438,1.03542595,3597.0,3596.5,0.1392]
[1754490414604,5.0162,3597.1,3596.5,0.1392]
[1754490414605,1.46642595,3596.9,3596.5,0.1392]
[1754490414809,0.39902595,3596.8,3596.3,0.1392]
[1754490415109,5.6526,3596.7,3596.3,0.1392]
[1754490415306,5.2216,3596.7,3596.3,0.1392]
[1754490415506,0.7756,3596.7,3596.3,2.91976888]
[1754490415711,4.444,3596.6,3596.3,0.70964972]
[1754490415955,5.2196,3596.6,3596.3,2.91980494]
[1754490416169,5.2196,3596.6,3596.4,2.7805322]
[1754490416372,4.443,3596.5,3596.4,2.78052404]
[1754490416568,4.443,3596.5,3596.4,0.2923724]
[1754490416849,4.443,3596.5,3596.4,3.07293073]
[1754490417064,0.1392,3596.8,3596.5,2.78048102]
[1754490417230,4.442,3596.6,3596.5,2.78048102]
[1754490417559,4.442,3596.6,3596.2,0.002]
[1754490417715,4.442,3596.6,3596.5,2.91968102]
[1754490417912,0.1392,3597.0,3596.5,0.70943916]
[1754490418140,4.443,3596.9,3596.6,2.78037813]
[1754490418438,4.443,3596.9,3596.5,0.1392]
[1754490418633,1.2066,3596.8,3596.2,0.002]
[1754490418837,1.2066,3596.8,3596.3,0.1392]
[1754490419074,0.1392,3596.5,3596.2,0.002]
[1754490419273,4.441,3596.4,3596.2,0.002]
[1754490419474,5.6476,3596.4,3596.2,0.002]
[1754490419676,1.3458,3596.3,3596.2,0.002]
[1754490420637,4.44,3596.3,3596.2,0.002]
[1754490421566,5.2156,3596.3,3596.2,0.002]
[1754490421767,0.1392,3596.7,3596.2,0.002]
[1754490421768,0.9148,3596.7,3596.2,0.002]
[1754490421984,4.442,3596.6,3596.2,0.002]
[1754490422283,4.44,3596.5,3596.2,0.57249164]
[1754490422465,4.44,3596.4,3596.2,2.78268609]
[1754490422781,4.439,3596.3,3596.2,2.78268609]
[1754490422994,4.439,3596.3,3596.2,3.47844004]
[1754490423343,0.1392,3597.0,3596.2,1.94755395]
[1754490423543,0.25976417,3597.2,3597.0,2.78009452]
[1754490423779,0.25976417,3597.4,3596.6,0.7891]
[1754490423979,0.7756,3597.8,3597.2,2.77993995]
[1754490423980,0.25976417,3597.3,3597.2,2.77993995]
[1754490424181,0.25976417,3597.4,3597.3,2.91906267]
[1754490424384,4.69776417,3597.4,3597.3,2.77986267]
[1754490424981,0.04,3597.9,3597.3,2.77986267]
[1754490424982,4.438,3597.5,3597.4,2.7797854]
[1754490425183,0.001,3597.5,3597.4,4.1687854]
[1754490425348,0.001,3597.5,3597.4,5.19863573]
[1754490425582,0.04,3597.9,3597.8,2.77947634]
[1754490425941,0.04,3597.9,3597.8,4.72438041]
[1754490428195,0.04,3597.9,3597.8,3.47458041]
[1754490428437,0.04,3597.9,3597.8,2.91867634]
[1754490428590,0.8156,3597.9,3597.8,0.1392]
[1754490428782,5.6816,3597.9,3596.5,2.78048102]
[1754490429008,0.1392,3597.7,3597.2,0.1392]
[1754490429298,0.1392,3597.5,3597.0,2.91926316]
[1754490429503,1.2066,3597.4,3597.0,0.1392]
[1754490429844,0.431,3597.7,3597.0,0.29193454]
[1754490430056,4.434,3597.3,3597.0,2.78003068]
[1754490430223,4.434,3597.3,3596.3,0.4607]
[1754490430399,1.2066,3597.2,3597.1,0.1392]
[1754490430605,1.2066,3597.2,3597.1,2.91921723]
[1754490430806,0.7756,3597.2,3597.1,0.1392]
[1754490431020,0.7756,3597.2,3597.1,2.91921723]
[1754490431316,0.7756,3597.2,3597.1,0.1392]
[1754490431925,0.7756,3597.2,3597.1,2.91921723]
[1754490432148,4.434,3597.3,3597.2,2.77993995]
[1754490432459,5.6406,3597.3,3597.1,0.1392]
[1754490432956,5.6406,3597.3,3597.2,2.77993995]
[1754490433245,5.6406,3597.3,3597.1,0.1392]
[1754490433445,1.2066,3597.2,3596.8,0.1392]
[1754490433660,0.1392,3597.1,3596.6,0.1392]
[1754490433936,1.2066,3597.0,3596.6,0.1392]
[1754490434143,0.7756,3596.9,3596.6,0.1392]
[1754490434348,4.428,3596.8,3596.6,0.1392]
[1754490434517,1.2066,3596.7,3596.2,0.002]
[1754490434907,0.1392,3596.4,3596.2,0.002]
[1754490435205,4.427,3596.3,3596.2,0.002]
[1754490435428,5.2026,3596.3,3596.2,0.002]
[1754490435640,4.431,3596.6,3596.2,0.43360447]
[1754490435843,5.6376,3596.5,3596.2,0.1412]
[1754490436046,4.431,3596.5,3596.2,0.1412]